bitfinex/quotes_SOLUSD_20220228
["timestamp","ask_amount","ask_price","bid_price","bid_amount"]
[1646059272560,5.0,92.824,92.704,4.261e-05]
[1646059272764,5.0,92.804,92.704,4.261e-05]
[1646059272963,5.0,92.784,92.704,4.261e-05]
[1646059273165,5.0,92.764,92.704,4.261e-05]
[1646059273364,65.23,92.745,92.704,4.261e-05]
[1646059273566,65.23,92.723,92.704,4.261e-05]
[1646059273765,108.8,92.708,92.704,4.261e-05]
[1646059273964,65.23,92.706,92.704,4.261e-05]
[1646059274162,69.544,92.705,92.704,4.261e-05]
[1646059274363,65.23,92.705,92.704,4.261e-05]
[1646059274763,69.544,92.705,92.704,4.261e-05]
[1646059274964,65.23,92.703,92.544,52.87267385]
[1646059275163,108.8,92.696,92.544,50.44036223]
[1646059275367,174.03,92.682,92.544,50.44036223]
[1646059275563,1.58348463,92.681,92.544,50.44036223]
[1646059276565,108.8,92.689,92.544,50.44036223]
[1646059276566,1.67142724,92.688,92.544,50.44036223]
[1646059276968,1.67142724,92.688,92.544,49.94036223]
[1646059277368,4.317,92.687,92.544,49.94036223]
[1646059277569,108.8,92.687,92.544,49.94036223]
[1646059277769,1.9856729,92.687,92.545,2.49899122]
[1646059277971,14.28151174,92.698,92.545,2.49899122]
[1646059277972,14.28151174,92.698,92.545,67.72899122]
[1646059278269,4.317,92.734,92.546,4.8940911]
[1646059278468,4.317,92.767,92.561,65.23]
[1646059278671,83.81423811,92.765,92.563,65.23]
[1646059278869,83.81423811,92.765,92.562,141.05042217]
[1646059278870,83.81423811,92.765,92.572,1.83]
[1646059279069,1.54039319,92.764,92.612,1.83]
[1646059279293,83.81423811,92.765,92.62,13.34]
[1646059279470,108.8,92.831,92.621,6.0]
[1646059279670,65.23,92.818,92.621,80.32389059]
[1646059279870,108.8,92.809,92.622,2.77040635]
[1646059280071,1.89643008,92.808,92.623,6.0]
[1646059280474,26.82473604,92.807,92.623,6.0]
[1646059280672,2.08610047,92.805,92.623,6.0]
[1646059280876,4.314,92.804,92.623,6.0]
[1646059281274,65.23,92.801,92.622,2.77040635]
[1646059281578,1.92576442,92.789,92.622,2.77040635]
[1646059281773,4.314,92.788,92.621,71.9205]
[1646059282077,108.8,92.787,92.622,2.29564452]
[1646059282274,108.8,92.785,92.622,2.29564452]
[1646059282573,1.68216533,92.784,92.622,2.29564452]
[1646059282773,4.314,92.783,92.622,2.29564452]
[1646059282977,113.114,92.783,92.622,2.29564452]
[1646059283178,2.03921054,92.782,92.622,2.29564452]
[1646059283375,1.5827939,92.78,92.621,71.9205]
[1646059283575,4.314,92.779,92.621,24.4121]
[1646059283776,1.90348151,92.768,92.621,24.4121]
[1646059283976,1.90348151,92.768,92.614,58.36956775]
[1646059283977,5.0,92.754,92.614,58.36956775]
[1646059284176,5.0,92.744,92.563,2.31623364]
[1646059284376,65.23,92.738,92.562,23.1121]
[1646059284577,5.0,92.724,92.562,23.1121]
[1646059284776,108.8,92.719,92.562,23.1121]
[1646059284977,1.76278879,92.718,92.562,23.1121]
[1646059285178,4.317,92.717,92.563,52.34599196]
[1646059285581,4.317,92.717,92.564,111.0618048]
[1646059285780,4.317,92.717,92.565,6.0]
[1646059285978,4.317,92.737,92.565,6.0]
[1646059286378,1.57075798,92.738,92.565,8.22027565]
[1646059286579,110.37075798,92.738,92.565,10.96706486]
[1646059286802,1.80814079,92.737,92.565,10.96706486]
[1646059287099,65.23,92.731,92.565,10.96706486]
[1646059287300,108.8,92.722,92.565,10.96706486]
[1646059287499,108.8,92.72,92.563,52.34599196]
[1646059287699,108.8,92.718,92.564,2.80085812]
[1646059287899,1.58615644,92.717,92.563,52.34599196]
[1646059288102,108.8,92.714,92.563,52.34599196]
[1646059288399,174.03,92.682,92.563,52.34599196]
[1646059288600,1.96543435,92.681,92.563,52.34599196]
[1646059288802,1.96543435,92.681,92.564,108.8]
[1646059289001,1.52408448,92.737,92.567,2.15636527]
[1646059289203,1.52408448,92.737,92.572,2.7126511]
[1646059289402,1.52408448,92.737,92.575,108.8]
[1646059289602,1.52408448,92.737,92.582,65.23]
[1646059289804,1.52408448,92.737,92.587,108.8]
[1646059290002,1.52408448,92.737,92.588,2.32736151]
[1646059290204,1.52408448,92.737,92.591,2.46797046]
[1646059290406,1.5389834,92.761,92.595,65.23]
[1646059290609,4.316,92.76,92.61,108.3]
[1646059290804,4.316,92.76,92.614,108.3]
[1646059291005,4.316,92.76,92.616,173.53]
[1646059291205,1.5389834,92.761,92.617,2.12020551]
[1646059291407,1.5389834,92.761,92.618,6.0]
[1646059291806,1.5389834,92.761,92.619,65.23]
[1646059292006,24.5337,92.763,92.621,65.23]
[1646059292205,24.5337,92.763,92.622,2.41308352]
[1646059292405,24.5337,92.763,92.628,65.23]
[1646059292605,4.315,92.79,92.63,78.57]
[1646059292805,1.82116786,92.797,92.631,2.71555503]
[1646059293005,4.314,92.806,92.631,2.71555503]
[1646059293006,6.40333135,92.806,92.632,65.23]
[1646059293208,120.0,92.83,92.606,0.82559858]
[1646059293406,65.23,92.804,92.596,0.00385276]
[1646059293607,5.0,92.734,92.484,263.75178789]
[1646059293821,5.0,92.654,92.484,263.75178789]
[1646059294008,108.8,92.638,92.484,263.75178789]
[1646059294208,2.27395468,92.637,92.485,54.50150979]
[1646059294411,65.23,92.62,92.485,54.50150979]
[1646059294609,2.42738679,92.619,92.485,54.50150979]
[1646059294812,65.23,92.618,92.485,54.50150979]
[1646059295009,108.8,92.613,92.485,54.50150979]
[1646059295209,6.91126576,92.617,92.485,54.50150979]
[1646059295210,2.58328272,92.608,92.485,54.50150979]
[1646059295409,4.266,92.607,92.485,54.50150979]
[1646059295811,2.58328272,92.608,92.485,54.50150979]
[1646059296009,108.8,92.602,92.485,54.50150979]
[1646059296210,174.03,92.589,92.485,54.50150979]
[1646059296411,174.03,92.587,92.485,54.50150979]
[1646059296612,174.03,92.585,92.374,1.87694789]
[1646059296811,174.03,92.579,92.362,0.93]
[1646059297011,2.535115,92.578,92.374,2.74678921]
[1646059297210,178.354,92.577,92.374,2.74678921]
[1646059297410,2.58887325,92.576,92.374,2.74678921]
[1646059297610,4.324,92.575,92.375,54.5861772]
[1646059297812,29.79681471,92.594,92.402,2.74678921]
[1646059298014,2.35579333,92.593,92.435,108.8]
[1646059298315,23.5855,92.62,92.436,6.0]
[1646059298316,2.61790781,92.619,92.436,6.0]
[1646059298517,2.61790781,92.619,92.433,59.22276531]
[1646059298518,4.323,92.618,92.433,59.22276531]
[1646059298713,108.8,92.616,92.433,59.22276531]
[1646059298913,6.97638276,92.615,92.433,59.22276531]
[1646059299319,6.97638276,92.615,92.434,2.74678921]
[1646059299515,6.97638276,92.615,92.434,4.52990652]
[1646059299716,108.8,92.614,92.433,59.22276531]
[1646059299914,23.5855,92.62,92.433,59.22276531]
[1646059299915,6.49268452,92.613,92.434,6.0]
[1646059300515,4.323,92.613,92.434,6.0]
[1646059300715,2.23287145,92.619,92.434,6.0]
[1646059300716,4.323,92.618,92.434,6.0]
[1646059300919,108.8,92.617,92.434,6.0]
[1646059301216,2.34755029,92.614,92.435,108.8]
[1646059301418,4.323,92.613,92.451,108.8]
[1646059301619,4.322,92.618,92.453,60.80131363]
[1646059301818,2.65099882,92.619,92.454,7.68293769]
[1646059302019,4.322,92.618,92.454,7.68293769]
[1646059302420,4.322,92.618,92.454,8.12235197]
[1646059302618,4.322,92.618,92.454,2.12235197]
[1646059302820,4.322,92.618,92.453,60.80131363]
[1646059303219,2.65099882,92.619,92.453,60.80131363]
[1646059303621,2.65099882,92.619,92.453,126.03131363]
[1646059303819,4.322,92.618,92.453,126.03131363]
[1646059304420,2.65099882,92.619,92.453,126.03131363]
[1646059304622,4.322,92.618,92.454,2.23651124]
[1646059304821,4.322,92.618,92.453,60.80131363]
[1646059305022,2.65099882,92.619,92.453,60.80131363]
[1646059305221,4.322,92.618,92.453,60.80131363]
[1646059305423,4.322,92.618,92.457,2.12053078]
[1646059305622,4.322,92.618,92.457,110.92053078]
[1646059305825,4.322,92.618,92.458,4.70291576]
[1646059306126,4.322,92.618,92.453,60.80131363]
[1646059306322,2.65099882,92.619,92.453,60.80131363]
[1646059306523,4.322,92.618,92.453,60.80131363]
[1646059307222,174.03,92.617,92.453,60.80131363]
[1646059307425,174.03,92.615,92.453,60.80131363]
[1646059307622,108.8,92.599,92.453,60.80131363]
[1646059307822,13.34,92.59,92.453,60.80131363]
[1646059308023,6.70955609,92.589,92.453,60.80131363]
[1646059308422,4.323,92.589,92.453,60.80131363]
[1646059308622,4.323,92.618,92.453,60.80131363]
[1646059309222,174.03,92.616,92.453,60.80131363]
[1646059309424,108.8,92.614,92.453,60.80131363]
[1646059309623,108.8,92.608,92.453,60.80131363]
[1646059309824,108.8,92.606,92.453,60.80131363]
[1646059310025,108.8,92.604,92.453,60.80131363]
[1646059310224,108.8,92.602,92.453,60.80131363]
[1646059310425,115.13758737,92.601,92.453,60.80131363]
[1646059310626,2.11628669,92.6,92.453,60.80131363]
[1646059310822,113.123,92.599,92.453,60.80131363]
[1646059311026,2.4437925,92.598,92.453,60.80131363]
[1646059311223,4.323,92.597,92.453,60.80131363]
[1646059311431,4.323,92.608,92.453,60.80131363]
[1646059311625,113.123,92.608,92.453,60.80131363]
[1646059311826,108.8,92.606,92.453,60.80131363]
[1646059312028,108.8,92.604,92.453,60.80131363]
[1646059312230,108.8,92.598,92.453,60.80131363]
[1646059312429,7.0440805,92.597,92.453,60.80131363]
[1646059312830,4.323,92.597,92.453,60.80131363]
[1646059313052,4.323,92.601,92.453,60.80131363]
[1646059313228,4.323,92.618,92.453,60.80131363]
[1646059313829,108.8,92.617,92.453,60.80131363]
[1646059314033,108.8,92.615,92.453,60.80131363]
[1646059314230,6.71788627,92.614,92.453,60.80131363]
[1646059314429,4.322,92.614,92.453,60.80131363]
[1646059314630,4.322,92.618,92.453,126.03131363]
[1646059314831,4.322,92.618,92.454,1.95387118]
[1646059315033,4.322,92.618,92.454,4.70066039]
[1646059315232,4.322,92.618,92.455,65.23]
[1646059315431,4.322,92.642,92.493,65.23]
[1646059315631,4.321,92.667,92.495,52.59383774]
[1646059315833,2.74678921,92.671,92.495,52.59383774]
[1646059316032,4.32,92.67,92.495,52.59383774]
[1646059316232,4.32,92.67,92.496,6.0]
[1646059316836,2.17737211,92.668,92.495,52.59383774]
[1646059317034,4.32,92.667,92.495,52.59383774]
[1646059317333,174.03,92.666,92.495,52.59383774]
[1646059317534,174.03,92.664,92.495,52.59383774]
[1646059317735,108.8,92.662,92.496,65.23]
[1646059318035,2.66154447,92.659,92.495,52.59383774]
[1646059318335,4.32,92.658,92.496,6.0]
[1646059318733,4.32,92.658,92.497,65.23]
[1646059318934,4.32,92.658,92.499,65.23]
[1646059319138,4.32,92.663,92.499,65.23]
[1646059319335,4.32,92.663,92.501,65.23]
[1646059319537,4.32,92.663,92.502,2.15276851]
[1646059319836,4.32,92.685,92.505,1.77203353]
[1646059320036,4.319,92.686,92.507,65.23]
[1646059320237,4.319,92.686,92.52,13.34]
[1646059320438,4.319,92.686,92.521,129.97467347]
[1646059320636,4.319,92.696,92.522,1.76420773]
[1646059320840,4.319,92.696,92.524,65.23]
[1646059321040,4.319,92.705,92.543,65.23]
[1646059321238,4.319,92.705,92.551,65.23]
[1646059321440,4.319,92.705,92.553,65.23]
[1646059321642,1.46739957,92.715,92.553,65.23]
[1646059321643,4.317,92.713,92.554,7.70412871]
[1646059321849,1.46739957,92.715,92.602,5.0]
[1646059322039,1.46739957,92.715,92.554,6.0]
[1646059322040,1.46739957,92.727,92.613,45.32281656]
[1646059322239,4.316,92.752,92.62,13.34]
[1646059322439,1.46739957,92.755,92.62,13.34]
[1646059322440,4.315,92.754,92.621,6.0]
[1646059322639,4.315,92.754,92.622,108.8]
[1646059322838,2.93479914,92.787,92.621,6.0]
[1646059322839,4.315,92.76,92.623,6.0]
[1646059323039,1.46739957,92.76,92.623,6.0]
[1646059323238,4.315,92.764,92.62,13.34]
[1646059323439,4.315,92.769,92.621,6.0]
[1646059323642,4.315,92.769,92.623,110.62189145]
[1646059323839,4.315,92.772,92.626,65.23]
[1646059324040,4.315,92.772,92.641,108.8]
[1646059324244,4.314,92.781,92.641,108.8]
[1646059324442,4.314,92.781,92.653,108.8]
[1646059324640,0.13568407,92.782,92.66,13.34]
[1646059324847,0.13568407,92.782,92.662,0.74]
[1646059325040,0.13568407,92.782,92.663,65.23]
[1646059325240,0.13568407,92.782,92.665,174.03]
[1646059325440,0.13568407,92.782,92.667,108.8]
[1646059325640,4.313,92.781,92.666,54.57779251]
[1646059326044,0.13568407,92.782,92.666,54.57779251]
[1646059326541,2.13636762,92.779,92.666,54.57779251]
[1646059326744,4.313,92.778,92.666,54.57779251]
[1646059327045,2.13636762,92.779,92.666,54.57779251]
[1646059327241,0.13568407,92.782,92.666,54.57779251]
[1646059327845,4.313,92.781,92.667,108.8]
[1646059328069,0.13568407,92.782,92.667,108.8]
[1646059328248,0.13568407,92.782,92.669,108.8]
[1646059328443,0.13568407,92.782,92.67,6.0]
[1646059328643,0.13568407,92.782,92.671,108.8]
[1646059329043,0.13568407,92.782,92.673,108.8]
[1646059329245,0.13568407,92.782,92.676,65.23]
[1646059329444,0.13568407,92.782,92.69,13.34]
[1646059329643,0.13568407,92.782,92.683,65.23]
[1646059329846,0.13568407,92.782,92.684,6.0]
[1646059330244,0.13568407,92.782,92.682,58.55341534]
[1646059330843,1.46739957,92.851,92.683,108.8]
[1646059331244,1.46739957,92.856,92.685,108.8]
[1646059331545,2.06843644,92.858,92.697,108.8]
[1646059331747,4.311,92.857,92.699,108.8]
[1646059332046,4.311,92.857,92.7,19.34]
[1646059332248,4.311,92.857,92.7,13.34]
[1646059332746,4.311,92.857,92.698,53.62258039]
[1646059333347,4.311,92.857,92.699,108.8]
[1646059333746,4.311,92.857,92.706,65.23]
[1646059333947,4.311,92.857,92.721,108.8]
[1646059334148,4.311,92.857,92.734,65.23]
[1646059334354,4.309,92.886,92.753,108.8]
[1646059334547,4.309,92.886,92.763,108.8]
[1646059334746,0.13568407,92.887,92.772,65.23]
[1646059334946,4.308,92.886,92.774,65.23]
[1646059335146,4.308,92.886,92.771,108.8]
[1646059335346,4.308,92.886,92.772,6.0]
[1646059335567,4.308,92.944,92.772,6.0]
[1646059335746,4.308,92.944,92.772,13.74678921]
[1646059335947,4.307,92.946,92.773,1.78238955]
[1646059336150,4.307,92.946,92.782,0.7]
[1646059336348,4.307,92.954,92.8,108.8]
[1646059336548,4.307,92.954,92.81,13.34]
[1646059336750,4.307,92.954,92.811,6.0]
[1646059336950,4.307,92.954,92.81,13.34]
[1646059337649,4.307,92.954,92.811,108.8]
[1646059338050,4.307,92.954,92.81,13.34]
[1646059338451,4.307,92.954,92.811,6.0]
[1646059338651,2.35291174,92.955,92.811,6.0]
[1646059339555,4.306,92.954,92.811,6.0]
[1646059340354,4.306,92.954,92.812,108.8]
[1646059340553,4.306,92.954,92.814,108.8]
[1646059340754,4.306,92.954,92.819,65.23]
[1646059341058,4.306,92.954,92.83,13.34]
[1646059341256,4.306,92.985,92.851,448.03958857]
[1646059341457,4.304,92.993,92.86,13.34]
[1646059341656,4.304,92.998,92.86,13.34]
[1646059342657,4.304,92.998,92.852,52.1845735]
[1646059343461,2.74678921,92.997,92.852,52.1845735]
[1646059343658,4.304,92.996,92.852,52.1845735]
[1646059343858,1.46739957,92.992,92.852,52.1845735]
[1646059344057,4.304,92.996,92.852,52.1845735]
[1646059344058,5.77139957,92.991,92.852,52.1845735]
[1646059344461,2.12911804,92.99,92.852,50.1845735]
[1646059344663,1.46739957,92.987,92.852,50.1845735]
[1646059344860,5.77139957,92.989,92.852,50.1845735]
[1646059345059,4.304,92.989,92.852,50.1845735]
[1646059345260,2.74678921,92.988,92.852,50.1845735]
[1646059345461,4.304,92.987,92.852,50.1845735]
[1646059345861,4.21418878,92.986,92.852,50.1845735]
[1646059346063,1.46739957,92.98,92.852,50.1845735]
[1646059346462,1.46739957,92.974,92.852,50.1845735]
[1646059346662,4.305,92.973,92.852,50.1845735]
[1646059346962,3.805,92.974,92.852,50.1845735]
[1646059347365,1.46739957,92.988,92.853,6.0]
[1646059347562,1.46739957,92.98,92.853,6.0]
[1646059347762,1.46739957,92.981,92.853,6.0]
[1646059347963,4.304,92.98,92.853,6.0]
[1646059348366,1.46739957,92.982,92.852,50.1845735]
[1646059348565,2.16798187,92.997,92.852,50.1845735]
[1646059348566,1.46739957,92.963,92.852,50.1845735]
[1646059348967,1.46739957,92.958,92.852,50.1845735]
[1646059349164,1.46739957,92.959,92.852,50.1845735]
[1646059349366,1.46739957,92.958,92.852,50.1845735]
[1646059349565,1.46739957,92.96,92.852,50.1845735]
[1646059349767,1.46739957,92.963,92.852,50.1845735]
[1646059350065,1.46739957,92.965,92.852,50.1845735]
[1646059350265,1.46739957,92.966,92.852,50.1845735]
[1646059350586,5.77239957,92.965,92.852,50.1845735]
[1646059350967,16.5455,92.996,92.852,50.1845735]
[1646059351167,1.48409472,92.975,92.853,65.23]
[1646059351368,1.48409472,92.991,92.855,65.23]
[1646059351565,1.48409472,92.986,92.871,65.23]
[1646059351768,1.48409472,92.988,92.876,108.8]
[1646059351967,1.48409472,92.986,92.875,49.65456343]
[1646059352166,1.48409472,92.98,92.875,49.65456343]
[1646059352369,1.48409472,92.979,92.875,49.65456343]
[1646059352767,4.304,92.978,92.875,49.65456343]
[1646059352965,1.48409472,92.975,92.875,49.65456343]
[1646059353165,4.304,92.974,92.875,49.65456343]
[1646059353367,1.48409472,92.974,92.875,49.65456343]
[1646059353565,4.304,92.973,92.875,49.65456343]
[1646059353766,1.48409472,92.968,92.875,49.65456343]
[1646059353967,1.48409472,92.971,92.875,49.65456343]
[1646059354167,1.48409472,92.97,92.875,49.65456343]
[1646059354565,1.48409472,92.966,92.875,49.65456343]
[1646059354767,1.48409472,92.955,92.875,49.65456343]
[1646059354968,1.48409472,92.954,92.875,49.65456343]
[1646059355366,4.305,92.953,92.8,13.34]
[1646059355566,1.48409472,92.947,92.772,5.0]
[1646059355768,1.48409472,92.935,92.797,108.8]
[1646059355967,1.48409472,92.939,92.797,108.8]
[1646059356165,1.48409472,92.939,92.808,65.23]
[1646059356366,1.48409472,92.947,92.811,174.03]
[1646059356566,1.48409472,92.946,92.813,108.8]
[1646059356765,1.48409472,92.943,92.811,65.23]
[1646059356967,1.48409472,92.94,92.81,13.34]
[1646059357170,1.48409472,92.936,92.818,385.6972425]
[1646059357370,1.48409472,92.934,92.818,385.6972425]
[1646059357968,1.48409472,92.934,92.819,108.8]
[1646059358167,1.48409472,92.939,92.818,385.6972425]
[1646059358367,1.48409472,92.934,92.818,385.6972425]
[1646059358568,1.48409472,92.933,92.818,385.6972425]
[1646059358771,1.48409472,92.933,92.819,108.8]
[1646059358970,1.48409472,92.941,92.819,108.8]
[1646059359170,1.48409472,92.947,92.824,48.32506571]
[1646059359368,1.48409472,92.936,92.824,48.32506571]
[1646059359567,1.48409472,92.93,92.824,48.32506571]
[1646059359769,1.48409472,92.929,92.824,48.32506571]
[1646059359967,1.48409472,92.931,92.824,48.32506571]
[1646059360173,1.48409472,92.932,92.824,113.55506571]
[1646059360373,1.48409472,92.94,92.831,108.8]
[1646059360573,1.48409472,92.935,92.824,48.32506571]
[1646059360771,1.48409472,92.933,92.825,6.0]
[1646059361171,1.48409472,92.933,92.824,48.32506571]
[1646059361370,1.48409472,92.925,92.825,108.8]
[1646059361573,1.48409472,92.925,92.824,48.32506571]
[1646059361772,1.48409472,92.927,92.824,48.32506571]
[1646059361973,1.48409472,92.918,92.874,364.5253493]
[1646059362174,1.48409472,92.911,92.824,48.32506571]
[1646059362374,1.48409472,92.901,92.824,48.32506571]
[1646059362576,1.48409472,92.898,92.824,48.32506571]
[1646059362778,1.48409472,92.899,92.824,48.32506571]
[1646059362974,1.48409472,92.897,92.824,48.32506571]
[1646059363175,1.48409472,92.892,92.824,48.32506571]
[1646059363374,1.48409472,92.895,92.824,48.32506571]
[1646059363775,1.48409472,92.888,92.824,48.32506571]
[1646059363976,1.48409472,92.885,92.824,465.66089492]
[1646059364176,2.93479914,92.909,92.824,465.66089492]
[1646059364375,1.50614636,92.879,92.824,465.66089492]
[1646059364675,2.93479914,92.913,92.824,465.66089492]
[1646059364876,2.93479914,92.916,92.825,108.8]
[1646059365077,2.93479914,92.918,92.825,108.8]
[1646059365280,2.93479914,92.918,92.825,111.54678921]
[1646059365477,2.93479914,92.926,92.826,2.74678921]
[1646059365677,2.93479914,92.93,92.826,2.74678921]
[1646059365876,6.04801761,92.925,92.825,108.8]
[1646059366077,2.93479914,92.931,92.825,108.8]
[1646059366278,2.93479914,92.927,92.825,108.8]
[1646059366777,8.98281675,92.926,92.825,108.8]
[1646059367178,2.93479914,92.927,92.825,108.8]
[1646059367379,2.68773261,92.951,92.891,46.10776593]
[1646059367580,2.42949415,92.957,92.891,46.10776593]
[1646059367784,4.40219872,92.977,92.891,46.10776593]
[1646059367981,2.62854777,92.986,92.891,46.10776593]
[1646059368382,83.90069329,92.985,92.891,46.10776593]
[1646059368583,108.8,92.98,92.891,46.10776593]
[1646059368781,65.23,92.973,92.891,46.10776593]
[1646059368983,2.59551969,92.971,92.8,13.34]
[1646059369184,65.23,92.969,92.8,13.34]
[1646059369383,108.8,92.962,92.796,131.3369]
[1646059369582,176.66313999,92.952,92.796,131.3369]
[1646059369783,65.23,92.952,92.796,131.3369]
[1646059369985,6.45333441,92.951,92.819,55.80476087]
[1646059370785,65.23,92.947,92.819,55.80476087]
[1646059370985,174.03,92.942,92.819,55.80476087]
[1646059371186,108.8,92.933,92.819,55.80476087]
[1646059371388,108.8,92.921,92.819,55.80476087]
[1646059371586,2.36756318,92.92,92.819,55.80476087]
[1646059371786,65.23,92.943,92.819,55.80476087]
[1646059371986,65.23,92.941,92.819,55.80476087]
[1646059372187,65.23,92.939,92.819,55.80476087]
[1646059372389,2.35165422,92.936,92.819,55.80476087]
[1646059372594,4.306,92.935,92.819,55.80476087]
[1646059372990,2.35475279,92.952,92.819,55.80476087]
[1646059373399,2.35475279,92.952,92.833,51.27246082]
[1646059373600,2.09705463,92.97,92.833,51.27246082]
[1646059373799,4.305,92.969,92.833,51.27246082]
[1646059374099,2.09705463,92.97,92.833,51.27246082]
[1646059374299,108.8,92.965,92.833,51.27246082]
[1646059374500,6.38600181,92.964,92.833,51.27246082]
[1646059374900,108.8,92.963,92.833,51.27246082]
[1646059375100,108.8,92.957,92.833,51.27246082]
[1646059375300,67.49218182,92.956,92.833,51.27246082]
[1646059375503,7.01848173,92.955,92.833,51.27246082]
[1646059375902,2.71348173,92.955,92.833,51.27246082]
[1646059376301,2.09669735,92.961,92.833,51.27246082]
[1646059376501,2.07656063,92.96,92.833,51.27246082]
[1646059376902,110.87656063,92.96,92.833,51.27246082]
[1646059377101,108.8,92.96,92.833,51.27246082]
[1646059377301,2.32820417,92.959,92.833,51.27246082]
[1646059377700,2.12911804,92.958,92.833,51.27246082]
[1646059378301,2.12911804,92.958,92.879,534.1786706]
[1646059378500,113.16186744,92.958,92.88,53.16145965]
[1646059378700,2.66601882,92.957,92.88,53.16145965]
[1646059379501,111.46601882,92.957,92.88,53.16145965]
[1646059379702,2.22757793,92.956,92.88,53.16145965]
[1646059379901,108.8,92.955,92.88,53.16145965]
[1646059380102,2.24931567,92.954,92.88,53.16145965]
[1646059380505,2.21993459,92.95,92.88,53.16145965]
[1646059381311,2.14113496,92.956,92.88,53.16145965]
[1646059381912,2.56071984,92.967,92.88,53.16145965]
[1646059382411,4.40219872,92.979,92.88,53.16145965]
[1646059382616,2.51607356,92.983,92.88,53.16145965]
[1646059384513,18.48587356,92.983,92.88,53.16145965]
[1646059384714,2.08439621,92.982,92.88,53.16145965]
[1646059385916,2.70642745,92.987,92.88,53.16145965]
[1646059386116,2.70642745,92.987,92.881,108.8]
[1646059386715,2.70642745,92.987,92.88,53.16145965]
[1646059388321,2.04994771,92.986,92.88,53.16145965]
[1646059388718,108.8,92.981,92.88,53.16145965]
[1646059388918,2.45362526,92.98,92.88,53.16145965]
[1646059389319,15.68950542,92.98,92.88,53.16145965]
[1646059389519,2.23546727,92.979,92.88,53.16145965]
[1646059389919,2.48864505,92.987,92.88,53.16145965]
[1646059390929,67.71864505,92.987,92.88,53.16145965]
[1646059391125,2.58626592,92.986,92.88,53.16145965]
[1646059391327,65.23,92.979,92.88,53.16145965]
[1646059391528,65.23,92.971,92.88,53.16145965]
[1646059391727,2.49069605,92.978,92.88,53.16145965]
[1646059391728,108.8,92.964,92.88,53.16145965]
[1646059391925,22.56549656,92.978,92.88,53.16145965]
[1646059391926,108.8,92.954,92.88,53.16145965]
[1646059392128,2.42502051,92.953,92.88,53.16145965]
[1646059392325,174.03,92.952,92.88,53.16145965]
[1646059392527,2.38868236,92.951,92.88,53.16145965]
[1646059397037,2.03067719,92.987,92.88,53.16145965]
[1646059401138,2.74116657,92.986,92.88,53.16145965]
[1646059402539,67.35911804,92.985,92.88,53.16145965]
[1646059402738,2.754396,92.984,92.88,53.16145965]
[1646059402941,65.23,92.983,92.88,53.16145965]
[1646059403142,2.466112,92.982,92.88,53.16145965]
[1646059403539,65.23,92.979,92.88,53.16145965]
[1646059403743,2.12866893,92.978,92.88,53.16145965]
[1646059403941,4.87545814,92.978,92.88,53.16145965]
[1646059404344,2.12866893,92.978,92.88,53.16145965]
[1646059404742,2.74678921,92.983,92.88,53.16145965]
[1646059405042,2.55917684,92.986,92.88,53.16145965]
[1646059405242,2.55917684,92.986,92.882,556.11190684]
[1646059405841,2.74678921,92.985,92.882,556.11190684]
[1646059406043,2.55917684,92.986,92.882,556.11190684]
[1646059406442,4.304,92.985,92.882,556.11190684]
[1646059406643,2.55917684,92.986,92.882,556.11190684]
[1646059407444,4.68829488,92.986,92.882,556.11190684]
[1646059407847,2.55917684,92.986,92.882,556.11190684]
[1646059409047,108.8,92.973,92.882,556.11190684]
[1646059409245,65.23,92.966,92.88,53.16145965]
[1646059409445,2.24507873,92.96,92.88,53.16145965]
[1646059409845,17.00551847,92.96,92.88,53.16145965]
[1646059410045,2.12911804,92.967,92.88,53.16145965]
[1646059410046,2.21356846,92.959,92.88,53.16145965]
[1646059410345,2.49800816,92.965,92.88,53.16145965]
[1646059411456,4.304,92.964,92.88,53.16145965]